fUSD/lending_fUSD_20250215
["ID","MTS","AMOUNT","RATE_DAILY","PERIOD"]
[353141206,1739597445950,-327395.8711,0.0001,2]
[353141219,1739597651425,9114.4406,8.699e-05,2]
[353141220,1739597759117,1857.80084774,1e-05,2]
[353141222,1739597788452,2011.4471,8.699e-05,2]
[353141224,1739597977872,182.890396,8.791e-05,2]
[353141225,1739598487706,627.74,8.219e-05,2]
[353141226,1739598506547,577.4965,8.256e-05,2]
[353141227,1739598548104,947.0781,8.699e-05,2]
[353141228,1739598566150,-150.0,8.835e-05,2]
[353141229,1739598566173,-300.0,8.835e-05,2]
[353141230,1739598566195,-238.5052,8.836e-05,2]
[353141231,1739598566216,-1124.75232036,8.836e-05,2]
[353141236,1739598624947,-300.0,8.835e-05,2]
[353141237,1739598624969,-33079.0,8.836e-05,2]
[353141243,1739598632157,-1132.87600634,8.836e-05,2]
[353141244,1739598632171,-16753.1530733,8.836e-05,2]
[353141245,1739598632182,-500.0,8.851e-05,2]
[353141246,1739598632192,-1000.0,8.851e-05,2]
[353141247,1739598632202,-267.4647,8.851e-05,2]
[353141248,1739598632211,-150.0,8.959e-05,2]
[353141249,1739598632221,-481.7313,8.973e-05,2]
[353141250,1739598632230,-5000.0,8.973e-05,2]
[353141251,1739598632240,-3838.249,8.973e-05,2]
[353141252,1739598632249,-175.13,8.973e-05,2]
[353141253,1739598632258,-250.0,9.295e-05,2]
[353141254,1739598632268,-1000.0,9.365e-05,2]
[353141255,1739598632278,-23900.0,9.426e-05,2]
[353141256,1739598632288,-325.48,9.457e-05,2]
[353141257,1739598632297,-925.9,9.589e-05,2]
[353141258,1739598632307,-150.0,9.718e-05,2]
[353141259,1739598632316,-150.0,9.719e-05,2]
[353141260,1739598632326,-150.0,9.87e-05,2]
[353141261,1739598632336,-52479.70043303,9.91e-05,2]
[353141262,1739598632345,-500.0,9.999e-05,2]
[353141263,1739598632355,-269.11659833,9.999e-05,2]
[353141264,1739598632365,-327.17669197,9.999e-05,2]
[353141265,1739598632374,-103627.62086337,0.0001,2]
[353141266,1739598632386,-826.83337483,0.0001,2]
[353141267,1739598632405,-11536.91535681,0.0001,2]
[353141268,1739598632416,-1469.25156449,0.0001,2]
[353141269,1739598632428,-3700.0,0.0001,2]
[353141270,1739598632446,-747.34999,0.0001,2]
[353141390,1739598640179,-4584.30228133,0.0001,2]
[353141391,1739598640192,-528.1920333,0.0001,2]
[353141392,1739598640574,-457166.85372771,0.0001,2]
[353141412,1739598646168,-286.64457479,0.0001,2]
[353141413,1739598646180,-2813.22418452,0.0001,2]
[353141414,1739598646409,-1000.0,0.0001,2]
[353141481,1739599121941,2009.9978,8.699e-05,2]
[353141482,1739599360214,6153.0,8.813e-05,2]
[353141483,1739599547627,-3426.4697,8.836e-05,2]
[353141484,1739599547654,-2152.2476,8.836e-05,2]
[353141485,1739599547680,-3465.4807,8.836e-05,2]
[353141486,1739599547709,-546.9585,8.836e-05,2]
[353141487,1739599547749,-304.8435,8.836e-05,2]
[353141488,1739599560879,-0.7307,8.836e-05,2]
[353141489,1739599560906,-200.0,8.844e-05,2]
[353141490,1739599561239,-49799.2693,8.973e-05,2]
[353141491,1739599578512,-35901.4683,8.973e-05,2]
[353141492,1739599578539,-1078.5317,8.973e-05,2]
[353141493,1739599590941,-2500.0,8.851e-05,2]
[353141494,1739599627970,-1423.3928,8.836e-05,2]
[353141495,1739599627995,-0.4463,8.973e-05,2]
[353141496,1739599628020,-32576.1609,8.973e-05,2]
[353141497,1739599693681,596.35,8.219e-05,2]
[353141498,1739599759141,-835.1313,8.836e-05,2]
[353141499,1739599759163,-237.5791,8.973e-05,2]
[353141501,1739599832583,-150.0,9.486e-05,2]
[353141502,1739599832593,-2181.19,9.679e-05,2]
[353141503,1739599832603,-207.32,9.709e-05,2]
[353141504,1739599832614,-200.0,9.719e-05,2]
[353141505,1739599832624,-250.0,9.75e-05,2]
[353141506,1739599832633,-9683.7991537,9.755e-05,2]
[353141507,1739599832772,-1598.5381823,9.755e-05,2]
[353141508,1739599832783,-499.34874343,9.755e-05,2]
[353141509,1739599832802,-3614.97335,9.755e-05,2]
[353141538,1739599839010,-402.0,9.5e-05,2]
[353141540,1739599839021,-2862.13760739,9.755e-05,2]
[353141542,1739599839034,-5641.20296318,9.755e-05,2]
[353141545,1739599839044,-2000.0,9.773e-05,2]
[353141547,1739599839054,-2078.62,9.868e-05,2]
[353141549,1739599839065,-150.0,9.87e-05,2]
[353141551,1739599839078,-19419.653567,0.0001,2]
[353141553,1739599839092,-5508.92049053,0.0001,2]
[353141555,1739599839104,-363.60613795,0.0001,2]
[353141557,1739599839115,-10704.0354261,0.0001,2]
[353141560,1739599839127,-622.7692827,0.0001,2]
[353141562,1739599839143,-2046.12326002,0.0001,2]
[353141565,1739599839155,-543.48961775,0.0001,2]
[353141570,1739599839197,-832.25,0.0001,2]
[353141572,1739599839213,-1771.28400005,0.0001,2]
[353141575,1739599839225,-1798.03574023,0.0001,2]
[353141601,1739599840422,-10506.26849954,0.0001,2]
[353141602,1739599840620,-140401.31421958,0.0001,2]
[353141603,1739599840649,-259.71546597,0.0001,2]
[353141604,1739599840662,-2112.20324005,0.0001,2]
[353141605,1739599840674,-39567.4116,0.0001,2]
[353141606,1739599840767,-6664.5727,0.0001,2]
[353141607,1739599841025,-625.34,0.0001,2]
[353141610,1739599843587,-1817.67063,0.0001,2]
[353141611,1739599843599,-1765.7713395,0.0001,2]
[353141612,1739599843632,-651.17336432,0.0001,2]
[353141613,1739599843643,-220.68670844,0.0001,2]
[353141614,1739599843655,-4000.0,0.0001,2]
[353141615,1739599843665,-216.91768711,0.0001,2]
[353141616,1739599843676,-494.59,0.0001,2]
[353141617,1739599843686,-503.09,0.0001,2]
[353141618,1739599843697,-508.24,0.0001,2]
[353141619,1739599843706,-452.47117628,0.0001,2]
[353141620,1739599843718,-41.52882372,0.0001,2]
[353141621,1739599843730,-494.54,0.0001,2]
[353141622,1739599843740,-155.21,0.00010137,2]
[353141623,1739599843750,-192.0,0.00010137,2]
[353141624,1739599843761,-438.95,0.00010137,2]
[353141625,1739599843771,-168.96,0.00010142,2]
[353141626,1739599843782,-418.08005114,0.00010346,2]
[353141627,1739599843791,-596.35,0.00010464,2]
[353141628,1739599843801,-150.6,0.000105,2]
[353141629,1739599843811,-152.95,0.000105,2]
[353141630,1739599843821,-152.09,0.000105,2]
[353141631,1739599843832,-1000.0,0.00010536,2]
[353141632,1739599843842,-118.08604808,0.00010572,2]
[353141633,1739599843878,-381.91395192,0.00010572,2]
[353141634,1739599843888,-500.0,0.00010572,2]
[353141635,1739599843897,-500.0,0.00010572,2]
[353141636,1739599843907,-500.0,0.00010572,2]
[353141637,1739599843917,-500.0,0.00010572,2]
[353141638,1739599843927,-500.0,0.00010572,2]
[353141639,1739599843937,-500.0,0.00010572,2]
[353141640,1739599843947,-500.0,0.00010572,2]
[353141641,1739599843957,-458.15,0.00010572,2]
[353141642,1739599843966,-500.0,0.00010572,2]
[353141643,1739599843976,-508.84,0.00010572,2]
[353141644,1739599843990,-500.0,0.00010572,2]
[353141645,1739599844001,-500.0,0.00010572,2]
[353141646,1739599844016,-500.0,0.00010572,2]
[353141647,1739599844030,-395.46,0.00010572,2]
[353141648,1739599844043,-500.0,0.00010572,2]
[353141649,1739599844056,-500.0,0.00010572,2]
[353141650,1739599844066,-500.0,0.00010572,2]
[353141651,1739599844078,-500.0,0.00010572,2]
[353141652,1739599844090,-500.0,0.00010572,2]
[353141653,1739599844103,-500.0,0.00010572,2]
[353141654,1739599844116,-500.0,0.00010572,2]
[353141655,1739599844128,-500.0,0.00010572,2]
[353141656,1739599844141,-500.0,0.00010572,2]
[353141657,1739599844153,-500.0,0.00010572,2]
[353141658,1739599844166,-500.0,0.00010572,2]
[353141659,1739599844179,-500.0,0.00010572,2]
[353141660,1739599844193,-500.0,0.00010572,2]
[353141661,1739599844206,-500.0,0.00010572,2]
[353141662,1739599844218,-500.0,0.00010572,2]
[353141663,1739599844229,-500.0,0.00010572,2]
[353141664,1739599844241,-500.0,0.00010572,2]
[353141665,1739599844252,-500.0,0.00010572,2]
[353141666,1739599844262,-500.0,0.00010572,2]
[353141667,1739599844274,-493.95,0.00010572,2]
[353141668,1739599844286,-500.0,0.00010572,2]
[353141669,1739599844298,-500.0,0.00010572,2]
[353141670,1739599844311,-500.0,0.00010572,2]
[353141671,1739599844323,-418.08005114,0.00010615,2]
[353141672,1739599844336,-325.48,0.00010639,2]
[353141673,1739599844350,-1300.0,0.000107,3]
[353141674,1739599844363,-684.49724545,0.00010739,2]
[353141675,1739599844376,-2700.0,0.000108,3]
[353141676,1739599844388,-418.08005114,0.0001082,2]
[353141677,1739599844401,-980.56,0.00010877,2]
[353141678,1739599844413,-4100.0,0.000109,3]
[353141679,1739599844425,-268.65345225,0.000109,2]
[353141680,1739599844437,-366.29731399,0.00010941,2]
[353141681,1739599844452,-151.0,0.00010958,2]
[353141682,1739599844464,-151.0,0.00010958,2]
[353141683,1739599844477,-501.93269354,0.00010958,2]
[353141684,1739599844489,-163.149451,0.00010958,2]
[353141685,1739599844500,-155.637992,0.00010958,2]
[353141686,1739599844512,-228.45327663,0.00010958,2]
[353141687,1739599844525,-156.176261,0.00010958,2]
[353141688,1739599844536,-355.43934401,0.00010958,2]
[353141689,1739599844548,-504.79194294,0.00010958,2]
[353141690,1739599844560,-158.962043,0.00010958,2]
[353141691,1739599844576,-502.10767444,0.00010958,2]
[353141692,1739599844589,-501.61561555,0.00010958,2]
[353141693,1739599844602,-501.05469567,0.00010958,2]
[353141694,1739599844615,-501.21266978,0.00010958,2]
[353141695,1739599844626,-502.43468983,0.00010958,2]
[353141696,1739599844638,-151.0,0.00010958,2]
[353141697,1739599844652,-151.0,0.00010958,2]
[353141698,1739599844663,-151.0,0.00010958,2]
[353141699,1739599844674,-151.0,0.00010958,2]
[353141700,1739599844685,-151.0,0.00010958,2]
[353141701,1739599844697,-151.0,0.00010958,2]
[353141702,1739599844709,-151.0,0.00010958,2]
[353141703,1739599844723,-151.0,0.00010958,2]
[353141704,1739599844738,-151.0,0.00010958,2]
[353141705,1739599844751,-151.0,0.00010958,2]
[353141706,1739599844761,-151.0,0.00010958,2]
[353141707,1739599844773,-151.0,0.00010958,2]
[353141708,1739599844783,-151.0,0.00010958,2]
[353141709,1739599844795,-151.0,0.00010958,2]
[353141710,1739599844806,-151.0,0.00010958,2]
[353141711,1739599844818,-151.0,0.00010958,2]
[353141712,1739599844830,-151.0,0.00010958,2]
[353141713,1739599844846,-151.0,0.00010958,2]
[353141714,1739599844859,-151.0,0.00010958,2]
[353141715,1739599844871,-151.0,0.00010958,2]
[353141716,1739599844884,-248.51264491,0.00010958,2]
[353141717,1739599844895,-500.0,0.00010958,2]
[353141718,1739599844906,-500.0,0.00010958,2]
[353141719,1739599844917,-500.0,0.00010958,2]
[353141720,1739599844928,-500.0,0.00010958,2]
[353141721,1739599844939,-500.0,0.00010958,2]
[353141722,1739599844951,-500.0,0.00010958,2]
[353141723,1739599844963,-500.0,0.00010958,2]
[353141724,1739599844974,-561.17,0.00010958,2]
[353141725,1739599844985,-500.0,0.00010958,2]
[353141726,1739599845000,-500.0,0.00010958,2]
[353141727,1739599845012,-500.0,0.00010958,2]
[353141728,1739599845023,-500.0,0.00010958,2]
[353141729,1739599845034,-500.0,0.00010958,2]
[353141730,1739599845046,-512.00067955,0.00010958,2]
[353141731,1739599845057,-613.07,0.00010958,2]
[353141732,1739599845068,-500.0,0.00010958,2]
[353141733,1739599845079,-500.0,0.00010958,2]
[353141734,1739599845091,-501.8990171,0.00010958,2]
[353141735,1739599845103,-505.38850442,0.00010958,2]
[353141736,1739599845117,-500.0,0.00010958,2]
[353141737,1739599845129,-500.0,0.00010958,2]
[353141738,1739599845141,-523.5578059,0.00010958,2]
[353141739,1739599845153,-500.0,0.00010958,2]
[353141740,1739599845164,-500.0,0.00010958,2]
[353141741,1739599845175,-500.0,0.00010958,2]
[353141742,1739599845186,-500.0,0.00010958,2]
[353141743,1739599845197,-502.91838541,0.00010958,2]
[353141744,1739599845209,-500.0,0.00010958,2]
[353141745,1739599845220,-500.0,0.00010958,2]
[353141746,1739599845231,-500.0,0.00010958,2]
[353141747,1739599845242,-500.0,0.00010958,2]
[353141748,1739599845253,-500.0,0.00010958,2]
[353141749,1739599845265,-500.0,0.00010958,2]
[353141750,1739599845276,-500.0,0.00010958,2]
[353141751,1739599845288,-500.0,0.00010958,2]
[353141752,1739599845299,-500.0,0.00010958,2]
[353141753,1739599845310,-500.0,0.00010958,2]
[353141754,1739599845321,-500.0,0.00010958,2]
[353141755,1739599845332,-500.0,0.00010958,2]
[353141756,1739599845344,-500.0,0.00010958,2]
[353141757,1739599845355,-500.0,0.00010958,2]
[353141758,1739599845367,-500.0,0.00010958,2]
[353141759,1739599845378,-500.0,0.00010958,2]
[353141760,1739599845389,-500.0,0.00010958,2]
[353141761,1739599845400,-500.0,0.00010958,2]
[353141762,1739599845411,-500.0,0.00010958,2]
[353141763,1739599845422,-500.0,0.00010958,2]
[353141764,1739599845434,-502.2019396,0.00010958,2]
[353141765,1739599845445,-502.51187667,0.00010958,2]
[353141766,1739599845456,-501.14658812,0.00010958,2]
[353141767,1739599845468,-519.41,0.00010958,2]
[353141768,1739599845479,-500.0,0.00010958,2]
[353141769,1739599845490,-500.0,0.00010958,2]
[353141770,1739599845501,-500.0,0.00010958,2]
[353141771,1739599845512,-500.0,0.00010958,2]
[353141772,1739599845523,-500.0,0.00010958,2]
[353141773,1739599845535,-500.0,0.00010958,2]
[353141774,1739599845546,-500.0,0.00010958,2]
[353141775,1739599845557,-500.0,0.00010958,2]
[353141776,1739599845570,-500.0,0.00010958,2]
[353141777,1739599845580,-500.0,0.00010958,2]
[353141778,1739599845592,-500.0,0.00010958,2]
[353141779,1739599845602,-500.0,0.00010958,2]
[353141780,1739599845616,-500.0,0.00010958,2]
[353141781,1739599845627,-500.0,0.00010958,2]
[353141782,1739599845639,-501.01925414,0.00010958,2]
[353141783,1739599845650,-500.0,0.00010958,2]
[353141784,1739599845662,-500.0,0.00010958,2]
[353141785,1739599845673,-500.0,0.00010958,2]
[353141786,1739599845684,-500.0,0.00010958,2]
[353141787,1739599845696,-500.0,0.00010958,2]
[353141788,1739599845707,-500.0,0.00010958,2]
[353141789,1739599845718,-500.0,0.00010958,2]
[353141790,1739599845730,-500.0,0.00010958,2]
[353141791,1739599845741,-500.0,0.00010958,2]
[353141792,1739599845753,-621.29,0.00010958,2]
[353141793,1739599845764,-500.0,0.00010958,2]
[353141794,1739599845776,-500.0,0.00010958,2]
[353141795,1739599845787,-500.0,0.00010958,2]
[353141796,1739599845798,-163.149451,0.00010958,2]
[353141797,1739599845810,-500.0,0.00010958,2]
[353141798,1739599845821,-500.0,0.00010958,2]
[353141799,1739599845832,-500.0,0.00010958,2]
[353141800,1739599845844,-500.0,0.00010958,2]
[353141801,1739599845855,-500.0,0.00010958,2]
[353141802,1739599845866,-500.0,0.00010958,2]
[353141803,1739599845876,-500.0,0.00010958,2]
[353141804,1739599845888,-500.0,0.00010958,2]
[353141805,1739599845898,-438.825969,0.00010958,2]
[353141806,1739599845911,-151.0,0.00010958,2]
[353141807,1739599845922,-151.243641,0.00010958,2]
[353141808,1739599845935,-500.0,0.00010958,2]
[353141809,1739599845948,-500.0,0.00010958,2]
[353141810,1739599845961,-500.0,0.00010958,2]
[353141811,1739599845972,-500.0,0.00010958,2]
[353141812,1739599845984,-500.0,0.00010958,2]
[353141813,1739599845997,-500.0,0.00010958,2]
[353141814,1739599846009,-151.0,0.00010958,2]
[353141815,1739599846022,-500.0,0.00010958,2]
[353141816,1739599846033,-151.0,0.00010958,2]
[353141817,1739599846043,-500.0,0.00010958,2]
[353141818,1739599846055,-502.06242696,0.00010958,2]
[353141819,1739599846067,-500.0,0.00010958,2]
[353141820,1739599846078,-500.0,0.00010958,2]
[353141821,1739599846089,-500.0,0.00010958,2]
[353141822,1739599846100,-500.0,0.00010958,2]
[353141823,1739599846112,-612.61,0.00010958,2]
[353141824,1739599846124,-500.0,0.00010958,2]
[353141825,1739599846135,-500.0,0.00010958,2]
[353141826,1739599846146,-500.0,0.00010958,2]
[353141827,1739599846158,-500.0,0.00010958,2]
[353141828,1739599846169,-500.0,0.00010958,2]
[353141829,1739599846180,-500.0,0.00010958,2]
[353141830,1739599846191,-500.0,0.00010958,2]
[353141831,1739599846202,-500.0,0.00010958,2]
[353141832,1739599846213,-500.0,0.00010958,2]
[353141833,1739599846223,-500.0,0.00010958,2]
[353141834,1739599846234,-500.0,0.00010958,2]
[353141835,1739599846244,-500.0,0.00010958,2]
[353141836,1739599846255,-500.0,0.00010958,2]
[353141837,1739599846266,-500.0,0.00010958,2]
[353141838,1739599846277,-500.0,0.00010958,2]
[353141840,1739599846288,-500.0,0.00010958,2]
[353141841,1739599846298,-500.0,0.00010958,2]
[353141842,1739599846310,-500.0,0.00010958,2]
[353141843,1739599846321,-500.0,0.00010958,2]
[353141844,1739599846333,-500.0,0.00010958,2]
[353141845,1739599846346,-500.0,0.00010958,2]
[353141846,1739599846357,-500.0,0.00010958,2]
[353141847,1739599846368,-500.0,0.00010958,2]
[353141848,1739599846379,-500.0,0.00010958,2]
[353141849,1739599846390,-500.0,0.00010958,2]
[353141850,1739599846400,-505.1164005,0.00010958,2]
[353141851,1739599846411,-331.49465181,0.00010958,2]
[353141852,1739599846422,-500.0,0.00010958,2]
[353141853,1739599846433,-500.0,0.00010958,2]
[353141854,1739599846444,-500.0,0.00010958,2]
[353141855,1739599846455,-500.0,0.00010958,2]
[353141856,1739599846466,-500.0,0.00010958,2]
[353141857,1739599846476,-500.0,0.00010958,2]
[353141858,1739599846487,-500.0,0.00010958,2]
[353141859,1739599846498,-509.05319711,0.00010958,2]
[353141860,1739599846510,-500.0,0.00010958,2]
[353141861,1739599846520,-500.0,0.00010958,2]
[353141862,1739599846531,-500.0,0.00010958,2]
[353141863,1739599846543,-317.58193462,0.00010958,2]
[353141864,1739599846553,-500.0,0.00010958,2]
[353141865,1739599846566,-500.0,0.00010958,2]
[353141866,1739599846579,-402.321038,0.00010958,2]
[353141867,1739599846589,-500.0,0.00010958,2]
[353141868,1739599846600,-500.0,0.00010958,2]
[353141869,1739599846611,-500.0,0.00010958,2]
[353141870,1739599846622,-500.0,0.00010958,2]
[353141871,1739599846634,-500.0,0.00010958,2]
[353141872,1739599846645,-500.0,0.00010958,2]
[353141873,1739599846656,-500.0,0.00010958,2]
[353141874,1739599846667,-325.95978333,0.00010958,2]
[353141875,1739599846677,-500.0,0.00010958,2]
[353141876,1739599846688,-500.0,0.00010958,2]
[353141877,1739599846699,-500.0,0.00010958,2]
[353141878,1739599846709,-500.0,0.00010958,2]
[353141879,1739599846720,-500.0,0.00010958,2]
[353141880,1739599846730,-505.39884064,0.00010958,2]
[353141881,1739599846741,-500.0,0.00010958,2]
[353141882,1739599846752,-500.0,0.00010958,2]
[353141883,1739599846763,-500.0,0.00010958,2]
[353141885,1739599846774,-500.0,0.00010958,2]
[353141887,1739599846785,-500.0,0.00010958,2]
[353141889,1739599846795,-508.56178471,0.00010958,2]
[353141892,1739599846806,-500.0,0.00010958,2]
[353141894,1739599846817,-500.0,0.00010958,2]
[353141896,1739599846827,-500.31234698,0.00010958,2]
[353141898,1739599846838,-500.0,0.00010958,2]
[353141900,1739599846848,-500.0,0.00010958,2]
[353141902,1739599846859,-500.0,0.00010958,2]
[353141903,1739599846870,-500.0,0.00010958,2]
[353141904,1739599846881,-500.0,0.00010958,2]
[353141905,1739599846892,-500.0,0.00010958,2]
[353141906,1739599846902,-500.0,0.00010958,2]
[353141907,1739599846914,-500.0,0.00010958,2]
[353141908,1739599846925,-500.0,0.00010958,2]
[353141909,1739599846935,-500.0,0.00010958,2]
[353141910,1739599846946,-500.0,0.00010958,2]
[353141911,1739599846957,-496.28432792,0.00010958,2]
[353141912,1739599846967,-500.0,0.00010958,2]
[353141913,1739599846978,-500.0,0.00010958,2]
[353141914,1739599846990,-500.0,0.00010958,2]
[353141915,1739599847001,-500.0,0.00010958,2]
[353141916,1739599847011,-500.0,0.00010958,2]
[353141917,1739599847023,-500.0,0.00010958,2]
[353141918,1739599847409,-500.0,0.00010958,2]
[353141919,1739599847433,-500.0,0.00010958,2]
[353141920,1739599847446,-500.0,0.00010958,2]
[353141921,1739599847457,-500.0,0.00010958,2]
[353141922,1739599847468,-500.0,0.00010958,2]
[353141923,1739599847477,-500.0,0.00010958,2]
[353141924,1739599847487,-500.0,0.00010958,2]
[353141925,1739599847497,-500.0,0.00010958,2]
[353141926,1739599847507,-356.65366265,0.00010958,2]
[353141927,1739599847517,-531.11,0.00010958,2]
[353141928,1739599847527,-500.0,0.00010958,2]
[353141929,1739599847536,-500.0,0.00010958,2]
[353141930,1739599847546,-500.0,0.00010958,2]
[353141931,1739599847556,-550.18,0.00010958,2]
[353141932,1739599847566,-500.0,0.00010958,2]
[353141933,1739599847579,-500.0,0.00010958,2]
[353141934,1739599847589,-534.6903226,0.00010958,2]
[353141935,1739599847599,-500.0,0.00010958,2]
[353141936,1739599847610,-500.0,0.00010958,2]
[353141937,1739599847621,-500.0,0.00010958,2]
[353141938,1739599847631,-502.60032236,0.00010958,2]
[353141939,1739599847640,-500.0,0.00010958,2]
[353141940,1739599847650,-500.0,0.00010958,2]
[353141941,1739599847660,-500.0,0.00010958,2]
[353141942,1739599847670,-500.0,0.00010958,2]
[353141943,1739599847680,-500.0,0.00010958,2]
[353141944,1739599847690,-500.0,0.00010958,2]
[353141945,1739599847699,-500.0,0.00010958,2]
[353141946,1739599847709,-500.0,0.00010958,2]
[353141947,1739599847718,-500.0,0.00010958,2]
[353141948,1739599847728,-500.0,0.00010958,2]
[353141949,1739599847737,-504.47530605,0.00010958,2]
[353141950,1739599847747,-500.0,0.00010958,2]
[353141951,1739599847757,-500.0,0.00010958,2]
[353141952,1739599847766,-500.0,0.00010958,2]
[353141953,1739599847776,-500.0,0.00010958,2]
[353141954,1739599847786,-498.43552171,0.00010958,2]
[353141955,1739599847795,-500.0,0.00010958,2]
[353141956,1739599847805,-500.0,0.00010958,2]
[353141957,1739599847814,-500.0,0.00010958,2]
[353141958,1739599847823,-510.46,0.00010958,2]
[353141959,1739599847833,-500.0,0.00010958,2]
[353141960,1739599847844,-500.0,0.00010958,2]
[353141961,1739599847854,-500.0,0.00010958,2]
[353141962,1739599847864,-503.38419656,0.00010958,2]
[353141963,1739599847874,-500.0,0.00010958,2]
[353141964,1739599847883,-500.0,0.00010958,2]
[353141965,1739599847894,-500.0,0.00010958,2]
[353141966,1739599847903,-500.0,0.00010958,2]
[353141967,1739599847913,-606.17239037,0.00010958,2]
[353141968,1739599847922,-500.0,0.00010958,2]
[353141969,1739599847932,-500.0,0.00010958,2]
[353141970,1739599847945,-500.0,0.00010958,2]
[353141971,1739599847955,-505.43,0.00010958,2]
[353141972,1739599847965,-500.0,0.00010958,2]
[353141973,1739599847976,-500.0,0.00010958,2]
[353141974,1739599847986,-500.0,0.00010958,2]
[353141975,1739599847995,-500.0,0.00010958,2]
[353141976,1739599848004,-500.0,0.00010958,2]
[353141977,1739599848013,-500.0,0.00010958,2]
[353141978,1739599848022,-500.0,0.00010958,2]
[353141979,1739599848032,-500.0,0.00010958,2]
[353141980,1739599848041,-500.0,0.00010958,2]
[353141981,1739599848051,-500.0,0.00010958,2]
[353141982,1739599848061,-500.0,0.00010958,2]
[353141983,1739599848071,-500.0,0.00010958,2]
[353141984,1739599848081,-500.0,0.00010958,2]
[353141985,1739599848091,-500.0,0.00010958,2]
[353141986,1739599848100,-500.0,0.00010958,2]
[353141987,1739599848109,-500.0,0.00010958,2]
[353141988,1739599848119,-500.0,0.00010958,2]
[353141989,1739599848130,-500.0,0.00010958,2]
[353141990,1739599848140,-500.0,0.00010958,2]
[353141991,1739599848150,-506.65800186,0.00010958,2]
[353141992,1739599848159,-508.33,0.00010958,2]
[353141993,1739599848169,-500.0,0.00010958,2]
[353141994,1739599848179,-506.25433786,0.00010958,2]
[353141995,1739599848188,-443.99741173,0.00010958,2]
[353141996,1739599848198,-500.0,0.00010958,2]
[353141997,1739599848208,-500.0,0.00010958,2]
[353141998,1739599848218,-500.0,0.00010958,2]
[353141999,1739599848228,-500.0,0.00010958,2]
[353142000,1739599848238,-440.13648125,0.00010958,2]
[353142001,1739599848248,-500.0,0.00010958,2]
[353142002,1739599848258,-500.0,0.00010958,2]
[353142003,1739599848268,-500.0,0.00010958,2]
[353142004,1739599848277,-500.0,0.00010958,2]
[353142005,1739599848287,-500.0,0.00010958,2]
[353142006,1739599848297,-500.0,0.00010958,2]
[353142007,1739599848307,-500.0,0.00010958,2]
[353142008,1739599848316,-500.0,0.00010958,2]
[353142009,1739599848327,-500.0,0.00010958,2]
[353142010,1739599848337,-500.0,0.00010958,2]
[353142011,1739599848347,-618.31,0.00010958,2]
[353142012,1739599848357,-500.0,0.00010958,2]
[353142013,1739599848368,-500.0,0.00010958,2]
[353142014,1739599848378,-562.99,0.00010958,2]
[353142015,1739599848388,-508.86,0.00010958,2]
[353142016,1739599848399,-500.0,0.00010958,2]
[353142017,1739599848408,-500.0,0.00010958,2]
[353142018,1739599848419,-500.0,0.00010958,2]
[353142019,1739599848429,-500.0,0.00010958,2]
[353142020,1739599848439,-197.60214299,0.00010958,2]
[353142021,1739599848449,-500.0,0.00010958,2]